Cogmind - Beta 16 @@@ ROGUE MODE // 2025.11.21 @ 05:43:29 Player: Sharkenning Result: Destroyed by 30-UVT(R) with Subdweller Machine Gun Performance ------------- Evolutions (0) 0 Regions Visited (3) 600 Robots Destroyed (34) 170 Value Destroyed (857) 857 Prototype IDs (3) 60 Alien Tech Used (0) 0 Bonus (120) 120 TOTAL SCORE: 1807 Bonus ------- Follower Combat Kills 120 Cogmind --------- Core Integrity 0/250 Matter 297/300 Energy 182/200 System Corruption 0% Temperature Cool (0) Movement Core (500) Ox9 Location -10/Subcaves Parts ------- > --- POWER (1) -------- Subdweller Power Source > --- PROPULSION (2) --- (None) > --- UTILITY (2) ------ Large Storage Unit Seismic Detector > --- WEAPON (2) ------- Subdweller Laser > --- INVENTORY (15) --- Subdweller Power Source Structural Scanner Sensor Array Improved Terrain Scanner Seismic Detector Battle Rifle Subdweller Machine Gun Subdweller Shrapnel Launcher Multitool Flamer Peak State ------------ > --- POWER ------------ Subdweller Power Source > --- PROPULSION ------- Wheel Wheel > --- UTILITY ---------- Large Storage Unit Seismic Detector > --- WEAPON ----------- Particle Gun Subdweller Machine Gun > --- INVENTORY -------- Subdweller Power Source Structural Scanner Sensor Array Improved Terrain Scanner Seismic Detector Subdweller Laser Battle Rifle Subdweller Machine Gun Subdweller Shrapnel Launcher Multitool Flamer [Rating: 12] Favorites ----------- Power Subdweller Power Source Engine Subdweller Power Source Power Core Light Nuclear Core Propulsion Compact Wheel Wheel Compact Wheel Utility Seismic Detector Device Seismic Detector Storage Large Storage Unit Protection Medium Armor Plating Weapon Assault Rifle Energy Gun Particle Gun Energy Cannon Beam Cannon Ballistic Gun Assault Rifle Launcher Grenade Launcher Special Weapon Mining Laser Build | -11 -10 -10 -10 ------- Run | Yrd Mat Min Sub Slots Evolved . | . . . . Power . | . . . . Propulsion . | . . . . Utility . | . . . . Weapon . | . . . . Parts Attached 33 | 8 5 3 17 Power 7 | 1 1 2 3 Engine 6 | 1 1 1 3 Core 1 | . . 1 . Reactor . | . . . . Propulsion 8 | 3 . 1 4 Treads . | . . . . Leg . | . . . . Wheel 8 | 3 . 1 4 Hover . | . . . . Flight . | . . . . Utility 6 | 2 2 . 2 Device 2 | 1 . . 1 Storage 2 | 1 1 . . Processor . | . . . . Hackware . | . . . . Protection 2 | . 1 . 1 Artifact . | . . . . Weapon 12 | 2 2 . 8 Energy Gun 3 | . . . 3 Energy Cannon 1 | . . . 1 Ballistic Gun 6 | 2 2 . 2 Ballistic Cannon . | . . . . Launcher 1 | . . . 1 Special Weapon 1 | . . . 1 Impact Weapon . | . . . . Slashing Weapon . | . . . . Piercing Weapon . | . . . . Special Melee Weapon . | . . . . Unidentified Prototypes . | . . . . Parts Lost 20 | . . 1 19 Power 3 | . . 1 2 Propulsion 6 | . . . 6 Utility 2 | . . . 2 Weapon 9 | . . . 9 Highest Loss Streak 4 | . . 1 4 To Critical Strikes . | . . . . Average Backups 8 | 3 7 10 7 Power . | . . . . Propulsion . | 1 1 1 . Utility 4 | . 4 5 4 Weapon 2 | 1 2 3 1 Tool/Special . | . . . . Unused Backups 13 | 2 3 . 8 Power 2 | . 2 . . Propulsion 2 | 2 . . . Utility 3 | . . . 3 Weapon 5 | . 1 . 4 Tool/Special 1 | . . . 1 Average Slot Usage (%) 97 | . 100 95 97 Engine 9 | . 14 4 9 Core 3 | . . 5 4 Wheel 27 | . 28 28 27 Device 12 | . 12 12 12 Storage 14 | . 14 14 14 Protection 1 | . 2 1 1 Energy Gun 3 | . . . 5 Energy Cannon 3 | . . . 6 Ballistic Gun 17 | . 28 28 7 Launcher 1 | . . . 2 Special Weapon 1 | . . . 3 Peak Build Rating 12 | 7 10 10 12 Average Rating 9 | 5 8 8 9 On Entrance 6 | . 7 9 10 Avg Prop Armor Cover (%) . | . . . . Naked Turns . | . . . . Heaviest Build 37 | 13 32 32 37 Greatest Support 32 | 32 32 32 32 Greatest Overweight (x) 3 | . . . 3 Average Overweight (x) . | . . . . Largest Inventory Capacity 15 | 8 15 15 15 Average Capacity 13 | 7 9 15 15 Most Carried 12 | 6 9 12 12 Average Carried 8 | 3 7 10 7 Final Capacity 15 | 8 15 15 15 Final Carried 12 | 5 9 12 10 Class Distribution -------------------- 78% | Mutant 21% | Scavenger-Mutant Dominant Class ---------------- Mutant | -10/Materials Mutant | -10/Mines Mutant | -10/Subcaves Resources | -11 -10 -10 -10 ----------- Run | Yrd Mat Min Sub Matter Collected 1196 | 310 212 187 487 Remotely . | . . . . Salvage Created 1401 | 161 226 289 725 Parts 91 | 14 17 12 48 Haulers Intercepted 1 | . 1 . . Recyclers Shooed 2 | . 1 1 . Parts Field Recycled . | . . . . Retrieved Matter . | . . . . Parts Self-Destructed 17 | . . . 17 Prevented . | . . . . Parts Restored . | . . . . Kills | -11 -10 -10 -10 ------- Run | Yrd Mat Min Sub Combat Hostiles Destroyed 24 | . 8 2 14 Guns 19 | . 8 2 9 Cannons 2 | . . . 2 AOE 3 | . . . 3 Classes Destroyed 10 | 2 4 1 3 Worker 1 | . . 1 . Tunneler 3 | 3 . . . Hauler 1 | . 1 . . Recycler 4 | 1 . 3 . Watcher 1 | . 1 . . Swarmer 6 | . 6 . . Grunt 9 | . 2 2 5 Sentry 1 | . . . 1 Artisan 3 | . . . 3 Subdweller 8 | . . . 8 Best Kill Streak 4 | 4 3 2 2 Combat Bots Only 3 | . 3 2 2 Max Kills in Single Turn 2 | 1 2 1 2 Gunslinging 1 | . 1 . . Exploded 2 | . . . 2 Melee . | . . . . Uniques/NPCs Destroyed . | . . . . Combat | -11 -10 -10 -10 -------- Run | Yrd Mat Min Sub Hostile Shots Fired 160 | . 28 21 111 Missed 49 | . 11 7 31 Hits 111 | . 17 14 80 Projectile 111 | . 17 14 80 Critical Strikes 9 | . . 4 5 Damage Taken 1904 | . 158 192 1554 Core 268 | . 19 11 238 Absorbed by Shields . | . . . . Regen/Repaired (Parts) 43 | . 43 . . Core Remaining (%) 100 | 100 . . . Volleys Fired 164 | 5 28 21 110 Largest 2 | 2 2 2 2 Hottest 160 | 40 40 40 160 Shots Fired 290 | 10 56 42 182 Gun 222 | 10 56 42 114 Cannon 35 | . . . 35 Launcher 9 | . . . 9 Special 24 | . . . 24 Kinetic 179 | 10 56 42 71 Thermal 102 | . . . 102 Explosive 9 | . . . 9 Electromagnetic . | . . . . Robot Hit Streak 14 | 7 8 8 14 Robot Miss Streak 3 | . 3 2 2 Penetration Max . | . . . . Secondary Targets 4 | . 2 . 2 Max Gunslinging Chain 1 | . 1 . 1 Shots Hit Robots 174 | 7 34 31 102 Core Hits 71 | 5 15 12 39 Critical Kills . | . . . . Critical Parts Destroyed . | . . . . Critical Strikes 4 | . . . 4 Burn 2 | . . . 2 Destroy 2 | . . . 2 Melee Attacks . | . . . . Impact . | . . . . Slashing . | . . . . Piercing . | . . . . Sneak Attacks . | . . . . Combat Hostiles . | . . . . Follow-up Attacks . | . . . . Damage Inflicted 2722 | 83 467 383 1789 Guns 2112 | 83 467 383 1179 Cannons 329 | . . . 329 Explosions 281 | . . . 281 Melee . | . . . . Ramming . | . . . . Kinetic 1663 | 83 467 383 730 Thermal 778 | . . . 778 Explosive 281 | . . . 281 Electromagnetic . | . . . . Impact . | . . . . Slashing . | . . . . Piercing . | . . . . Highest Corruption . | . . . . Average Corruption . | . . . . Corruption Purged . | . . . . Corruption Blocked . | . . . . Overload Shots . | . . . . Overflow Damage 3 | . . . 3 Projectiles . | . . . . Explosions 3 | . . . 3 Melee . | . . . . Knockbacks . | . . . . Impact . | . . . . Kinetic . | . . . . Secondary . | . . . . Self-Inflicted Damage 40 | . . . 40 Shots 1 | . . . 1 Rammed . | . . . . Targets Rammed . | . . . . Kicked . | . . . . Crushed . | . . . . Highest Temperature 102 | . 12 102 17 Average Temperature 56 | . 9 65 8 Received Heat Transfer 756 | . 30 189 537 Siege Activations . | . . . . Martial Activations . | . . . . Shielding Activations . | . . . . Robots Disrupted . | . . . . Combat Hostiles . | . . . . Robots Corrupted . | . . . . Combat Hostiles . | . . . . Parts Fried . | . . . . Impact Corruptions . | . . . . Robots Melted . | . . . . Combat Hostiles . | . . . . Parts Melted 1 | . . . 1 Heat Transferred 1781 | . . . 1781 Parts Sabotaged . | . . . . Parts Stolen . | . . . . Parts Stripped . | . . . . Power Chain Reactions . | . . . . Alert | -11 -10 -10 -10 ------- Run | Yrd Mat Min Sub Maximum Alert Level . | . . . . Low Security (%) 100 | 100 100 100 . Level 1 . | . . . . Level 2 . | . . . . Level 3 . | . . . . Level 4 . | . . . . Level 5 . | . . . . High Security . | . . . . Max Security . | . . . . Peak Influence 94 | 10 94 90 . Initial . | . . . . Average 24 | 2 30 22 . Influence Increases 707 | 20 221 221 245 Destroy 0b10 Robot/C 400 | . 160 120 120 Destroy 0b10 Robot/NC 50 | 20 10 20 . Destroy Leader 84 | . 34 30 20 Allied During Kill 16 | . . 16 . Successful Hack 22 | . 17 5 . Disable Machine 15 | . . 15 . Lose Combat Pursuer 120 | . . 15 105 Influence Decreases 707 | 20 221 221 245 Time Decay 637 | 20 211 211 195 Lost Part 60 | . . 10 50 Lost Ally 10 | . 10 . . Squads Dispatched . | . . . . Investigation . | . . . . Extermination . | . . . . Reinforcement . | . . . . Assault . | . . . . Garrison . | . . . . Intercept . | . . . . Searches Triggered . | . . . . Construction Impeded . | . . . . Haulers Reinforced . | . . . . Active Scanning Responses . | . . . . Cargo Convoy Interrupts . | . . . . Stealth | -11 -10 -10 -10 --------- Run | Yrd Mat Min Sub Distress Signals . | . . . . Communications Jammed . | . . . . Distress Signals . | . . . . Times Spotted 37 | . 13 5 19 Peak Tracking Total 6 | . 3 2 6 Tactical Retreats 3 | . . 1 2 Traps | -11 -10 -10 -10 ------- Run | Yrd Mat Min Sub Traps Triggered . | . . . . Indirectly . | . . . . Trap Hack Attempts . | . . . . Triggered . | . . . . Disarmed . | . . . . Reprogrammed . | . . . . Reused . | . . . . Traps Extracted . | . . . . Installed . | . . . . Triggered . | . . . . Machines | -11 -10 -10 -10 ---------- Run | Yrd Mat Min Sub Machines Disabled 1 | . . 1 . Max in Single Turn . | . . . . Machines Repaired . | . . . . Machines Dismantled . | . . . . Machines Sabotaged . | . . . . Overloaded Fab Kills . | . . . . Hacking | -11 -10 -10 -10 --------- Run | Yrd Mat Min Sub Machines Accessed 11 | . 8 3 . Terminals 10 | . 7 3 . Fabricators . | . . . . Repair Stations 1 | . 1 . . Recycling Units . | . . . . Scanalyzers . | . . . . Garrison Access . | . . . . Total Hacks 26 | . 19 7 . Successful 14 | . 11 3 . Failed 12 | . 8 4 . Catastrophic 2 | . 1 1 . Database Lockouts . | . . . . Manual 11 | . 8 3 . Terminals 24 | . 17 7 . Fabricators . | . . . . Repair Stations 2 | . 2 . . Recycling Units . | . . . . Scanalyzers . | . . . . Garrison Access . | . . . . Terminal Hacks 6 | . 4 2 . Prototype ID Bank 2 | . 2 . . Locate Traps 1 | . 1 . . Registered Components 1 | . 1 . . Zone Layout 2 | . . 2 . Fabricator Hacks . | . . . . Repair Station Hacks 2 | . 2 . . Scan Component 1 | . 1 . . Repair 1 | . 1 . . Recycling Unit Hacks . | . . . . Scanalyzer . | . . . . Garrison Access Hacks . | . . . . Unauthorized Hacks 6 | . 5 1 . Terminals 6 | . 5 1 . Assimilate 1 | . 1 . . Botnet 5 | . 4 1 . Fabricators . | . . . . Repair Stations . | . . . . Recycling Units . | . . . . Scanalyzers . | . . . . Garrison Access . | . . . . Data Cores Recovered . | . . . . Used . | . . . . Hacking Detections 10 | . 8 2 . Full Trace Events 1 | . 1 . . Feedback Events . | . . . . Feedback Blocked . | . . . . Robot Schematics Acquired . | . . . . Robots Built . | . . . . Authchips . | . . . . Time . | . . . . Total Robot Build Rating . | . . . . Part Schematics Acquired . | . . . . Parts Built . | . . . . Authchips . | . . . . Time . | . . . . Total Part Build Rating . | . . . . Part Studies Acquired . | . . . . Parts Repaired 1 | . 1 . . Time 32 | . 32 . . Parts Recycled . | . . . . Recycled Matter . | . . . . Retrieved Matter . | . . . . Retrieved Components . | . . . . Parts Scanalyzed . | . . . . Part Schematics Acquired . | . . . . Parts Damaged . | . . . . Bothacking | -11 -10 -10 -10 ------------ Run | Yrd Mat Min Sub Used RIF Installer . | . . . . Robots Hacked . | . . . . Non-combat . | . . . . Combat . | . . . . Robot Hacks Applied . | . . . . Relay Couplers Released . | . . . . Fabnet Peak Effective % . | . . . . Robots Rewired . | . . . . Allies Hacked . | . . . . Hacks Repelled . | . . . . Allies | -11 -10 -10 -10 -------- Run | Yrd Mat Min Sub Total Allies 4 | . 1 3 . Largest Group 3 | . 1 3 . Highest-Rated Group 40 | . 10 40 . Highest-Rated Ally 16 | . 10 16 . Total Orders 3 | . . 3 . ROAM 1 | . . 1 . FOLLOW 2 | . . 2 . Ally Attacks 15 | . . 15 . Total Damage 179 | . . 179 . Kills 4 | . . 4 . Allies Corrupted . | . . . . Allies Melted . | . . . . Intel | -11 -10 -10 -10 ------- Run | Yrd Mat Min Sub Active Infowar (turns) 2763 | 34 591 678 1460 Structural 168 | . . . 168 Seismic 2595 | 34 591 678 1292 Robot Analysis Total . | . . . . Derelict Logs Recovered 2 | . . 2 . Drone Launches . | . . . . Drone Recoveries . | . . . . Exploration | -11 -10 -10 -10 ------------- Run | Yrd Mat Min Sub Turns Passed 3173 | 89 694 751 1639 Spaces Moved 2402 | 55 542 606 1199 Core 4 | 4 . . . Treads . | . . . . Legs . | . . . . Wheels 2398 | 51 542 606 1199 Hover . | . . . . Flight . | . . . . Fastest Speed 50 | 50 100 100 90 Average Speed 100 | 92 100 100 100 Slowest Speed 125 | 100 100 100 125 Overloaded Moves . | . . . . Propulsion Burnouts . | . . . . Robots Hopped . | . . . . Potential Cave-ins 2 | . . . 2 Cave-ins Triggered . | . . . . Exploration Rate (%) 62 | 5 88 97 59 Regions Visited 3 Branch Regions 2 Pre-discovered Areas 1 | . . 1 . Known Exits Taken . | . . . . Unknown Exits Taken 3 | 1 1 1 . Scrap Searched 4 | . . 1 3 Spaces Dug . | . . . . Terrain Destroyed 50 | . . . 50 Melee . | . . . . Projectile . | . . . . AOE 50 | . . . 50 Terrain Rammed . | . . . . Walls Destroyed . | . . . . Machines Disabled . | . . . . Actions | -11 -10 -10 -10 --------- Run | Yrd Mat Min Sub Total 2831 | 84 642 707 1398 Wait 159 | . 49 70 40 Move 2399 | 54 541 605 1199 Hop . | . . . . Pick Up 45 | 14 10 5 16 Fast Attach . | . . . . Attach 27 | 8 1 1 17 Detach 2 | 1 . . 1 Swap 22 | . 5 4 13 Drop 13 | 2 8 1 2 Fire 164 | 5 28 21 110 Melee . | . . . . Ram . | . . . . Kick . | . . . . Crush . | . . . . Escape Stasis . | . . . . Rewire . | . . . . Trap . | . . . . Miscellaneous . | . . . . Route ------- -11/Scrapyard -10/Materials (discovered 5 exits: [*Mat x3] / *Min x2) -10/Mines (discovered 3 exits: [*Mat x2] / [*Sub]) -10/Subcaves History --------- Turn | Location | Event 19 | -11/Scrapyard | Discovered new exit (range 16) 90 | -11/Scrapyard | Entered Materials 249 | -10/Materials | Discovered new exit (range 12) 277 | -10/Materials | Discovered new exit (range 16) 317 | -10/Materials | Build established: Mutant 412 | -10/Materials | Discovered new exit (range 16) 469 | -10/Materials | Discovered new exit (range 13) 648 | -10/Materials | Repaired Med. Armor Plating 657 | -10/Materials | Discovered new exit (range 8) 784 | -10/Materials | Entered Mines 900 | -10/Mines | Discovered new exit (range 7) 966 | -10/Mines | Discovered new exit (range 16) 985 | -10/Mines | Assisted by bots powering up and referring to "LRC-V3" 1409 | -10/Mines | Discovered new exit (range 6) 1535 | -10/Mines | Entered Subcaves 1815 | -10/Subcaves | Ambushed by angry Subdweller bent on revenge 1868 | -10/Subcaves | Lost 3 parts (1n1u1w) 2122 | -10/Subcaves | A swath of the cavern ceiling suddenly collapsed 2132 | -10/Subcaves | Lost 4 parts (2p1n1w) 2487 | -10/Subcaves | Core integrity fell below 50% 2505 | -10/Subcaves | Shifting Twisted Machinery released Sub. Power Source 2664 | -10/Subcaves | Shifting Twisted Machinery released Sub. Optics 2792 | -10/Subcaves | Build established: Scavenger-Mutant 3020 | -10/Subcaves | Core integrity fell below 20% 3174 | -10/Subcaves | Destroyed by 30-UVT(R) with Subdweller Machine Gun Last Messages --------------- Found Sub. Shrapnel Launcher. Found 42 Matter. Acquired 10 matter. Acquired Sub. Shrapnel Launcher. Searching scrap... Found Sub. Monowheel. Found 68 Matter. Acquired 8 matter. Searching scrap... Found Sub. Laser. Found Sub. Machine Gun. Found 31 Matter. Acquired Sub. Laser. Acquired Sub. Machine Gun. Q3-Q9Y(O) collects matter. Particle Gun destroyed. Wheel destroyed. 22-X52(R) suffers critical hit (Destroy). 22-X52(R) destroyed. Sub. Machine Gun destroyed. Map ----- +----------------------------------------------------+ | | | | | | | | | | | | | ?????????????????????????????????????????????????? | | ?????????????????????????????????????????????????? | | ?????????????????????????????????????????????????? | | ?????????????????????????????????????????????????? | | ?????????????????????????????????????????????????? | | ?????????????????????????????????????????????????? | | ?????????????????????????????????????????????????? | | ?????????????????????????????????????????????????? | | ????????????????????????????????? ??????????????? | | ????????????????????????????????# ???????????????? | | ???????????????????????????????" ???????????????? | | ??????????????????????????#####""????????????????? | | ??????????????????????????? ?????????????????? | | ??????????????????????????? ##?????????????????? | | ??????????????##??????????## "#?????????????????? | | ?????????##??## #???###?###< ###???????????????? | | ?????????# ## #### ### " ###?????????????? | | ????????## &! ##????????????? | | ????????# R%### #????????????? | | ?????????????# @#?# #???????????? | | ?????????????# #?# #????????? | | ?????????????# ### #???????? | | ?????????????# ### #??????? | | ?????????????# ### ## #?? #??????? | | ????????????# ???# ## #?# #?? #??????? | | ?????????????????## ####### ??## #??????? | | ?????????????????# ##??# #### #???? ##???????? | | ?????????????????## ##?? ######????? #????????? | | ??????????????????# ### #???????? ????????? | | ????????????######## | #??????????????????? | | ????????????#"" "" ## #?#????????????????? | | ????????????# ""= ### # # #?????????????? | | ????????????# ##% ## ???????????? | | ???????????????#% ## ## # #?????????????? | | ???????????????#"^ # ##???????????????????? | | ???????????????### ## ###????????????????????? | | ????????????????# #" #####???????????????????? | | ????????????????# # # ###?????????????????? | | ????????????????# #?????????????????? | | ???????????????## #" # # #?????????????????? | | ???????????????# ###" ### ##????????????????? | | ???????????????#"!"## ## #????????????????? | | ?????????????### ""### #?##??????????????? | | ?????????????#"%"###?# *# ## #??????????????? | +----------------------------------------------------+ Best States ------------- Heat Dissipation 25 Energy Generation 15 Energy Capacity 265 Matter Stores 300 Matter Capacity 300 Sight Range 16 Terrain Scan Density 10 Armor Coverage 225 Evasion (%) 42 Item Schematics ----------------- None Robot Schematics ------------------ None Fabricated ------------ Nothing Repaired ---------- Med. Armor Plating | 64% | -10/Materials Studied --------- None Alien Tech Used ----------------- None Achievements -------------- None Challenges ------------ None Game ------ Seed BehemothSubatomicCalibrator Manual? 0 Play Time 00:43:09 Cumulative 12.2 hours Start 2025.11.21 @ 04:59:41 End 2025.11.21 @ 05:43:29 Sessions 1 Manual Loads 0 Difficulty Rogue Special Mode None Game No. 6 Rogue 6 Adventurer 0 Explorer 0 Win Type - Total 0 Types 0/0/0/0/0/0/0/0/0/0 Lore% 3 Gallery% 13 Achievement% 15 Wizard Run 0 Options --------- Layout 1 ASCII 0 Keyboard 0 Movement Mouse Keybinds 0 Fullscreen 1 Font 32/SmallcapsGlow Map View 50x35 Zoom Use 0% Tactical HUD 0 Map Filters NONE Filters NONE Steam 1 RUN: db5b42ed-5f40-4e7e-874d-4cb125101f75